[Event "Titled Tuesday Blitz April 19 Early 2022"]
[White "Avalos Parra, Joao"]
[Black "Samarth, J Rao"]
[WhiteFideId "3402541"]
[BlackFideId "46652370"]
[WhiteElo "2173"]
[BlackElo "1514"]
[Result "1-0"]
[Round "08"]
[TimeControl "180+1"]
[Date "2022.04.19"]
[WhiteClock "0:01:01"]
[BlackClock "0:01:27"]

1. d4 {[%clk 0:03:00]}  d5 {[%clk 0:02:59]} 2. Nc3 {[%clk 0:03:01]}  Nf6 {[%clk 0:02:57]} 3. Bg5 {[%clk 0:03:02]}  Nbd7 {[%clk 0:02:58]} 4. Qd3 {[%clk 0:03:01]}  e6 {[%clk 0:02:56]} 5. e4 {[%clk 0:03:00]}  dxe4 {[%clk 0:02:56]} 6. Nxe4 {[%clk 0:03:01]}  Be7 {[%clk 0:02:56]} 7. Bxf6 {[%clk 0:03:01]}  Nxf6 {[%clk 0:02:57]} 8. O-O-O {[%clk 0:03:01]}  Nd5 {[%clk 0:02:56]} 9. Nf3 {[%clk 0:02:59]}  a6 {[%clk 0:02:53]} 10. Ne5 {[%clk 0:02:55]}  O-O {[%clk 0:02:53]} 11. h4 {[%clk 0:02:54]}  f5 {[%clk 0:02:50]} 12. Ng3 {[%clk 0:02:50]}  Bxh4 {[%clk 0:02:44]} 13. a3 {[%clk 0:02:46]}  Bg5+ {[%clk 0:02:42]} 14. Kb1 {[%clk 0:02:45]}  g6 {[%clk 0:02:42]} 15. Be2 {[%clk 0:02:40]}  Nf4 {[%clk 0:02:42]} 16. Qf3 {[%clk 0:02:40]}  Nxe2 {[%clk 0:02:41]} 17. Qxe2 {[%clk 0:02:41]}  b6 {[%clk 0:02:36]} 18. Rh3 {[%clk 0:02:20]}  Bb7 {[%clk 0:02:22]} 19. Nxg6 {[%clk 0:01:57]}  hxg6 {[%clk 0:02:21]} 20. Qxe6+ {[%clk 0:01:57]}  Kg7 {[%clk 0:02:22]} 21. Rdh1 {[%clk 0:01:52]}  Rh8 {[%clk 0:01:39]} 22. Rxh8 {[%clk 0:01:44]}  Qxh8 {[%clk 0:01:40]} 23. Qd7+ {[%clk 0:01:30]}  Kf6 {[%clk 0:01:40]} 24. Rxh8 {[%clk 0:01:27]}  Rxh8 {[%clk 0:01:41]} 25. Qxc7 {[%clk 0:01:27]}  Bxg2 {[%clk 0:01:41]} 26. Qe5+ {[%clk 0:01:27]}  Kf7 {[%clk 0:01:38]} 27. Qxh8 {[%clk 0:01:28]}  Bf6 {[%clk 0:01:39]} 28. Qh7+ {[%clk 0:01:27]}  Bg7 {[%clk 0:01:39]} 29. Nxf5 {[%clk 0:01:16]}  gxf5 {[%clk 0:01:40]} 30. Qxf5+ {[%clk 0:01:17]}  Bf6 {[%clk 0:01:40]} 31. Qd7+ {[%clk 0:01:12]}  Be7 {[%clk 0:01:38]} 32. Qf5+ {[%clk 0:01:11]}  Bf6 {[%clk 0:01:38]} 33. Qh5+ {[%clk 0:01:10]}  Ke7 {[%clk 0:01:35]} 34. d5 {[%clk 0:01:10]}  Bf1 {[%clk 0:01:32]} 35. Qf5 {[%clk 0:01:02]}  Bd4 {[%clk 0:01:28]} 36. Qe4+ {[%clk 0:01:01]}  Be5 {[%clk 0:01:27]} 37. Qxe5+ {[%clk 0:01:01]} 1-0


[Site "https://www.chess.com"]

[Event "Titled Tuesday Blitz April 19 Early 2022"]
[White "Avazkhonov, Alikhon"]
[Black "Yurovskykh, Oleksandr"]
[WhiteFideId "14208504"]
[BlackFideId "14134020"]
[WhiteElo "1739"]
[BlackElo "2292"]
[Result "0-1"]
[Round "08"]
[TimeControl "180+1"]
[Date "2022.04.19"]
[WhiteClock "0:00:01"]
[BlackClock "0:00:16"]

1. f4 {[%clk 0:02:55]}  d5 {[%clk 0:02:54]} 2. Nf3 {[%clk 0:02:54]}  Bg4 {[%clk 0:02:54]} 3. e3 {[%clk 0:02:53]}  Nd7 {[%clk 0:02:53]} 4. d4 {[%clk 0:02:51]}  e6 {[%clk 0:02:51]} 5. h3 {[%clk 0:02:52]}  Bf5 {[%clk 0:02:50]} 6. Bd3 {[%clk 0:02:42]}  Ngf6 {[%clk 0:02:48]} 7. O-O {[%clk 0:02:38]}  c5 {[%clk 0:02:47]} 8. c3 {[%clk 0:02:32]}  Bd6 {[%clk 0:02:44]} 9. Ne5 {[%clk 0:02:17]}  O-O {[%clk 0:02:37]} 10. g4 {[%clk 0:02:07]}  Bxd3 {[%clk 0:02:36]} 11. Qxd3 {[%clk 0:02:07]}  Ne4 {[%clk 0:02:34]} 12. Nd2 {[%clk 0:01:55]}  c4 {[%clk 0:02:23]} 13. Nexc4 {[%clk 0:01:21]}  Nxd2 {[%clk 0:01:56]} 14. Nxd2 {[%clk 0:01:21]}  f5 {[%clk 0:01:51]} 15. g5 {[%clk 0:01:01]}  Qc7 {[%clk 0:01:48]} 16. Nf3 {[%clk 0:01:01]}  Rfc8 {[%clk 0:01:46]} 17. Bd2 {[%clk 0:01:00]}  Rab8 {[%clk 0:01:46]} 18. h4 {[%clk 0:00:54]}  b5 {[%clk 0:01:43]} 19. Ne5 {[%clk 0:00:44]}  Bxe5 {[%clk 0:01:41]} 20. fxe5 {[%clk 0:00:44]}  Nb6 {[%clk 0:01:37]} 21. b3 {[%clk 0:00:29]}  a6 {[%clk 0:01:36]} 22. h5 {[%clk 0:00:28]}  Qf7 {[%clk 0:01:33]} 23. Qe2 {[%clk 0:00:26]}  g6 {[%clk 0:01:19]} 24. Rf4 {[%clk 0:00:19]}  gxh5 {[%clk 0:01:15]} 25. Rh4 {[%clk 0:00:19]}  Qg6 {[%clk 0:01:10]} 26. Rxh5 {[%clk 0:00:16]}  Rb7 {[%clk 0:01:09]} 27. Kf2 {[%clk 0:00:13]}  Rg7 {[%clk 0:01:09]} 28. Rah1 {[%clk 0:00:13]}  Nd7 {[%clk 0:00:46]} 29. Rg1 {[%clk 0:00:13]}  Nf8 {[%clk 0:00:45]} 30. Rh6 {[%clk 0:00:12]}  Qe8 {[%clk 0:00:42]} 31. Qf3 {[%clk 0:00:07]}  Rcc7 {[%clk 0:00:40]} 32. Qh3 {[%clk 0:00:07]}  Rg6 {[%clk 0:00:40]} 33. Rxg6+ {[%clk 0:00:04]}  hxg6 {[%clk 0:00:38]} 34. Qg3 {[%clk 0:00:03]}  Rh7 {[%clk 0:00:38]} 35. Kg2 {[%clk 0:00:03]}  Qd8 {[%clk 0:00:36]} 36. Rh1 {[%clk 0:00:03]}  Rxh1 {[%clk 0:00:36]} 37. Kxh1 {[%clk 0:00:04]}  Qa5 {[%clk 0:00:37]} 38. Qe1 {[%clk 0:00:02]}  Qxa2 {[%clk 0:00:37]} 39. Qd1 {[%clk 0:00:02]}  Nh7 {[%clk 0:00:35]} 40. e4 {[%clk 0:00:01]}  dxe4 {[%clk 0:00:31]} 41. Kg1 {[%clk 0:00:02]}  Nf8 {[%clk 0:00:29]} 42. Bf4 {[%clk 0:00:01]}  Kf7 {[%clk 0:00:19]} 43. d5 {[%clk 0:00:02]}  Qa3 {[%clk 0:00:16]} 44. dxe6+ {[%clk 0:00:01]}  Nxe6 {[%clk 0:00:16]} 45. Qd7+ {[%clk 0:00:01]}  Qe7 {[%clk 0:00:16]} 0-1


[Site "https://www.chess.com"]

[Event "Titled Tuesday Blitz April 19 Early 2022"]
[White "Bilych, Olexiy"]
[Black "Zia, Tahsin Tajwar"]
[WhiteFideId "14156504"]
[BlackFideId "10211888"]
[WhiteElo "2176"]
[BlackElo "1800"]
[Result "1-0"]
[Round "08"]
[TimeControl "180+1"]
[Date "2022.04.19"]
[WhiteClock "0:01:06"]
[BlackClock "0:01:02"]

1. e4 {[%clk 0:03:00]}  c5 {[%clk 0:02:58]} 2. Nf3 {[%clk 0:03:00]}  d6 {[%clk 0:02:58]} 3. d4 {[%clk 0:03:00]}  cxd4 {[%clk 0:02:59]} 4. Nxd4 {[%clk 0:03:00]}  Nf6 {[%clk 0:03:00]} 5. Nc3 {[%clk 0:03:00]}  g6 {[%clk 0:02:59]} 6. Be3 {[%clk 0:02:56]}  Nc6 {[%clk 0:02:57]} 7. f3 {[%clk 0:02:35]}  h5 {[%clk 0:02:54]} 8. Bc4 {[%clk 0:02:28]}  Bg7 {[%clk 0:02:47]} 9. Nxc6 {[%clk 0:02:20]}  bxc6 {[%clk 0:02:47]} 10. e5 {[%clk 0:02:21]}  dxe5 {[%clk 0:02:32]} 11. Qxd8+ {[%clk 0:02:20]}  Kxd8 {[%clk 0:02:33]} 12. Bxf7 {[%clk 0:02:21]}  Bf5 {[%clk 0:02:33]} 13. Bb3 {[%clk 0:02:20]}  Kc7 {[%clk 0:02:29]} 14. O-O-O {[%clk 0:02:20]}  e6 {[%clk 0:02:23]} 15. Bg5 {[%clk 0:01:56]}  Nd5 {[%clk 0:02:15]} 16. Ne4 {[%clk 0:01:56]}  a5 {[%clk 0:02:09]} 17. a4 {[%clk 0:01:53]}  Rab8 {[%clk 0:02:00]} 18. Rhe1 {[%clk 0:01:49]}  Rb4 {[%clk 0:01:53]} 19. Nc5 {[%clk 0:01:47]}  Kb6 {[%clk 0:01:44]} 20. Nd7+ {[%clk 0:01:45]}  Kc7 {[%clk 0:01:40]} 21. Nxe5 {[%clk 0:01:46]}  Bxe5 {[%clk 0:01:37]} 22. Rxe5 {[%clk 0:01:47]}  Kd6 {[%clk 0:01:36]} 23. Ree1 {[%clk 0:01:46]}  Rhb8 {[%clk 0:01:34]} 24. Bf6 {[%clk 0:01:31]}  R8b7 {[%clk 0:01:24]} 25. Bc3 {[%clk 0:01:29]}  Rh4 {[%clk 0:01:22]} 26. h3 {[%clk 0:01:09]}  c5 {[%clk 0:01:12]} 27. g4 {[%clk 0:01:07]}  Rxh3 {[%clk 0:01:02]} 28. gxf5 {[%clk 0:01:06]}  gxf5 {[%clk 0:01:01]} 29. Rxe6+ {[%clk 0:01:05]}  Kxe6 {[%clk 0:01:01]} 30. Bxd5+ {[%clk 0:01:06]}  Ke7 {[%clk 0:01:02]} 31. Bxb7 {[%clk 0:01:06]} 1-0


[Site "https://www.chess.com"]

[Event "Titled Tuesday Blitz April 19 Early 2022"]
[White "Carrasco Miranda, Andres"]
[Black "Thomas, Anysia"]
[WhiteFideId "3405990"]
[BlackFideId "670472"]
[WhiteElo "2177"]
[BlackElo "2002"]
[Result "1-0"]
[Round "08"]
[TimeControl "180+1"]
[Date "2022.04.19"]
[WhiteClock "0:00:11"]
[BlackClock "0:00:01"]

1. d4 {[%clk 0:03:00]}  Nf6 {[%clk 0:02:59]} 2. c4 {[%clk 0:02:59]}  g6 {[%clk 0:02:59]} 3. g3 {[%clk 0:02:59]}  d5 {[%clk 0:03:00]} 4. cxd5 {[%clk 0:02:58]}  Nxd5 {[%clk 0:03:01]} 5. Bg2 {[%clk 0:02:58]}  Nb6 {[%clk 0:02:58]} 6. Nf3 {[%clk 0:02:57]}  Bg7 {[%clk 0:02:56]} 7. O-O {[%clk 0:02:57]}  Nc6 {[%clk 0:02:51]} 8. e3 {[%clk 0:02:55]}  e5 {[%clk 0:02:49]} 9. Nc3 {[%clk 0:02:50]}  Bg4 {[%clk 0:02:43]} 10. d5 {[%clk 0:02:15]}  e4 {[%clk 0:02:41]} 11. Nxe4 {[%clk 0:02:13]}  Nxd5 {[%clk 0:02:39]} 12. h3 {[%clk 0:02:11]}  Bf5 {[%clk 0:02:33]} 13. Nc5 {[%clk 0:02:08]}  Bc8 {[%clk 0:02:23]} 14. e4 {[%clk 0:01:55]}  Ndb4 {[%clk 0:02:17]} 15. Qxd8+ {[%clk 0:01:50]}  Kxd8 {[%clk 0:02:14]} 16. Bg5+ {[%clk 0:01:49]}  f6 {[%clk 0:02:12]} 17. Rfd1+ {[%clk 0:01:46]}  Ke7 {[%clk 0:02:12]} 18. Bd2 {[%clk 0:01:39]}  b6 {[%clk 0:02:06]} 19. Nb3 {[%clk 0:01:36]}  Bb7 {[%clk 0:01:55]} 20. a3 {[%clk 0:01:35]}  Nd3 {[%clk 0:01:51]} 21. Bc3 {[%clk 0:01:34]}  Rad8 {[%clk 0:01:47]} 22. Nbd4 {[%clk 0:00:55]}  Nxd4 {[%clk 0:01:38]} 23. Bxd4 {[%clk 0:00:51]}  Bxe4 {[%clk 0:01:10]} 24. Re1 {[%clk 0:00:42]}  Nxe1 {[%clk 0:01:08]} 25. Rxe1 {[%clk 0:00:43]}  Rxd4 {[%clk 0:00:56]} 26. Nxd4 {[%clk 0:00:43]}  f5 {[%clk 0:00:56]} 27. Bxe4 {[%clk 0:00:41]}  Bxd4 {[%clk 0:00:47]} 28. Bxf5+ {[%clk 0:00:41]}  Kf6 {[%clk 0:00:39]} 29. Bg4 {[%clk 0:00:34]}  h5 {[%clk 0:00:31]} 30. Bf3 {[%clk 0:00:32]}  Bxb2 {[%clk 0:00:31]} 31. a4 {[%clk 0:00:32]}  Rd8 {[%clk 0:00:25]} 32. Kg2 {[%clk 0:00:29]}  Rd4 {[%clk 0:00:19]} 33. Re2 {[%clk 0:00:28]}  Ba3 {[%clk 0:00:17]} 34. Rc2 {[%clk 0:00:16]}  Bd6 {[%clk 0:00:15]} 35. a5 {[%clk 0:00:16]}  Ra4 {[%clk 0:00:12]} 36. axb6 {[%clk 0:00:15]}  axb6 {[%clk 0:00:13]} 37. Bd5 {[%clk 0:00:14]}  Ra3 {[%clk 0:00:12]} 38. Re2 {[%clk 0:00:14]}  Rc3 {[%clk 0:00:11]} 39. Re6+ {[%clk 0:00:14]}  Kg7 {[%clk 0:00:11]} 40. Re8 {[%clk 0:00:13]}  Rc2 {[%clk 0:00:09]} 41. g4 {[%clk 0:00:13]}  hxg4 {[%clk 0:00:09]} 42. hxg4 {[%clk 0:00:13]}  Bc5 {[%clk 0:00:09]} 43. g5 {[%clk 0:00:14]}  Rxf2+ {[%clk 0:00:08]} 44. Kg3 {[%clk 0:00:14]}  Rf8 {[%clk 0:00:08]} 45. Re6 {[%clk 0:00:13]}  Bd6+ {[%clk 0:00:07]} 46. Kg4 {[%clk 0:00:13]}  Rf4+ {[%clk 0:00:07]} 47. Kh3 {[%clk 0:00:14]}  Rf7 {[%clk 0:00:04]} 48. Be4 {[%clk 0:00:13]}  Kf8 {[%clk 0:00:02]} 49. Bxg6 {[%clk 0:00:13]}  Rg7 {[%clk 0:00:02]} 50. Kg4 {[%clk 0:00:10]}  Re7 {[%clk 0:00:01]} 51. Rf6+ {[%clk 0:00:10]}  Kg7 {[%clk 0:00:02]} 52. Kf5 {[%clk 0:00:10]}  c5 {[%clk 0:00:02]} 53. Bh5 {[%clk 0:00:10]}  Be5 {[%clk 0:00:01]} 54. Rg6+ {[%clk 0:00:11]}  Kf8 {[%clk 0:00:01]} 55. Rh6 {[%clk 0:00:11]} 1-0


[Site "https://www.chess.com"]

[Event "Titled Tuesday Blitz April 19 Early 2022"]
[White "Chan, Kim Yew"]
[Black "Zanette, Edgard Vinicius"]
[WhiteFideId "5717981"]
[BlackFideId "2109263"]
[WhiteElo "2206"]
[BlackElo "2182"]
[Result "0-1"]
[Round "08"]
[TimeControl "180+1"]
[Date "2022.04.19"]
[WhiteClock "0:00:07"]
[BlackClock "0:00:08"]

1. c4 {[%clk 0:03:00]}  Nf6 {[%clk 0:02:57]} 2. Nc3 {[%clk 0:03:00]}  c5 {[%clk 0:02:57]} 3. Nf3 {[%clk 0:02:59]}  Nc6 {[%clk 0:02:57]} 4. e3 {[%clk 0:02:55]}  e6 {[%clk 0:02:56]} 5. d4 {[%clk 0:02:52]}  d5 {[%clk 0:02:55]} 6. cxd5 {[%clk 0:02:50]}  exd5 {[%clk 0:02:54]} 7. Bb5 {[%clk 0:02:50]}  Bd6 {[%clk 0:02:49]} 8. O-O {[%clk 0:02:49]}  O-O {[%clk 0:02:48]} 9. dxc5 {[%clk 0:02:46]}  Bxc5 {[%clk 0:02:48]} 10. b3 {[%clk 0:02:47]}  a6 {[%clk 0:02:43]} 11. Be2 {[%clk 0:02:39]}  h6 {[%clk 0:02:37]} 12. Bb2 {[%clk 0:02:38]}  Be6 {[%clk 0:02:36]} 13. Rc1 {[%clk 0:02:28]}  Qd6 {[%clk 0:02:32]} 14. Na4 {[%clk 0:01:33]}  Ba7 {[%clk 0:02:12]} 15. Nd4 {[%clk 0:01:29]}  Bd7 {[%clk 0:01:54]} 16. Qd3 {[%clk 0:00:55]}  Rad8 {[%clk 0:01:44]} 17. Nxc6 {[%clk 0:00:46]}  Bxc6 {[%clk 0:01:40]} 18. Rfd1 {[%clk 0:00:42]}  Bb8 {[%clk 0:01:34]} 19. g3 {[%clk 0:00:40]}  Rfe8 {[%clk 0:01:20]} 20. Bf3 {[%clk 0:00:29]}  Ne4 {[%clk 0:01:00]} 21. Bd4 {[%clk 0:00:29]}  Bb5 {[%clk 0:00:46]} 22. Qb1 {[%clk 0:00:25]}  Qe6 {[%clk 0:00:39]} 23. Nc3 {[%clk 0:00:18]}  Bc6 {[%clk 0:00:36]} 24. Nxe4 {[%clk 0:00:17]}  dxe4 {[%clk 0:00:37]} 25. Bg2 {[%clk 0:00:17]}  h5 {[%clk 0:00:31]} 26. Qb2 {[%clk 0:00:17]}  Qg6 {[%clk 0:00:28]} 27. Bb6 {[%clk 0:00:15]}  Rxd1+ {[%clk 0:00:27]} 28. Rxd1 {[%clk 0:00:16]}  h4 {[%clk 0:00:27]} 29. Qd4 {[%clk 0:00:13]}  h3 {[%clk 0:00:25]} 30. Bxh3 {[%clk 0:00:12]}  Qh5 {[%clk 0:00:22]} 31. Bg2 {[%clk 0:00:12]}  Be5 {[%clk 0:00:16]} 32. Qd2 {[%clk 0:00:12]}  Qg4 {[%clk 0:00:13]} 33. h3 {[%clk 0:00:12]}  Qe6 {[%clk 0:00:13]} 34. Bd4 {[%clk 0:00:11]}  Bc7 {[%clk 0:00:12]} 35. Qc3 {[%clk 0:00:10]}  Qg6 {[%clk 0:00:11]} 36. b4 {[%clk 0:00:08]}  Qh5 {[%clk 0:00:09]} 37. Rc1 {[%clk 0:00:07]}  Qg6 {[%clk 0:00:08]} 38. a4 {[%clk 0:00:07]}  Bd6 {[%clk 0:00:07]} 39. a5 {[%clk 0:00:06]}  Bb5 {[%clk 0:00:05]} 40. Bc5 {[%clk 0:00:06]}  Be5 {[%clk 0:00:04]} 41. Bd4 {[%clk 0:00:06]}  Bd6 {[%clk 0:00:03]} 42. Bf1 {[%clk 0:00:06]}  Bxf1 {[%clk 0:00:03]} 43. Kxf1 {[%clk 0:00:07]}  Qf5 {[%clk 0:00:04]} 44. Kg2 {[%clk 0:00:07]}  Qf3+ {[%clk 0:00:04]} 45. Kg1 {[%clk 0:00:07]}  f5 {[%clk 0:00:04]} 46. Qd2 {[%clk 0:00:07]}  Bxg3 {[%clk 0:00:04]} 47. fxg3 {[%clk 0:00:07]}  Qxg3+ {[%clk 0:00:04]} 48. Qg2 {[%clk 0:00:08]}  Qxg2+ {[%clk 0:00:03]} 49. Kxg2 {[%clk 0:00:08]}  Re7 {[%clk 0:00:03]} 50. Rc8+ {[%clk 0:00:08]}  Kf7 {[%clk 0:00:03]} 51. Kg3 {[%clk 0:00:09]}  Rd7 {[%clk 0:00:03]} 52. Kf4 {[%clk 0:00:09]}  g6 {[%clk 0:00:03]} 53. Ke5 {[%clk 0:00:09]}  Re7+ {[%clk 0:00:03]} 54. Kf4 {[%clk 0:00:09]}  Rd7 {[%clk 0:00:03]} 55. Kg5 {[%clk 0:00:09]}  Ke6 {[%clk 0:00:04]} 56. Re8+ {[%clk 0:00:09]}  Kd5 {[%clk 0:00:04]} 57. Rg8 {[%clk 0:00:09]}  Rd6 {[%clk 0:00:03]} 58. Rxg6 {[%clk 0:00:09]}  Rxg6+ {[%clk 0:00:03]} 59. Kxg6 {[%clk 0:00:10]}  f4 {[%clk 0:00:03]} 60. Bb6 {[%clk 0:00:07]}  f3 {[%clk 0:00:04]} 61. h4 {[%clk 0:00:04]}  f2 {[%clk 0:00:05]} 62. h5 {[%clk 0:00:05]}  f1=Q {[%clk 0:00:05]} 63. h6 {[%clk 0:00:05]}  Qg2+ {[%clk 0:00:05]} 64. Kh7 {[%clk 0:00:06]}  Qh3 {[%clk 0:00:06]} 65. Kh8 {[%clk 0:00:06]}  Ke6 {[%clk 0:00:06]} 66. h7 {[%clk 0:00:07]}  Kf7 {[%clk 0:00:07]} 67. Bd4 {[%clk 0:00:06]}  Kg6 {[%clk 0:00:07]} 68. Kg8 {[%clk 0:00:06]}  Qxh7+ {[%clk 0:00:08]} 69. Kf8 {[%clk 0:00:07]}  Qf7# {[%clk 0:00:08]} 0-1


[Site "https://www.chess.com"]

[Event "Titled Tuesday Blitz April 19 Early 2022"]
[White "Chandratreya, Prachiti"]
[Black "Smietanska, Wiktoria"]
[WhiteFideId "46611215"]
[BlackFideId "21869359"]
[WhiteElo "1737"]
[BlackElo "1893"]
[Result "1-0"]
[Round "08"]
[TimeControl "180+1"]
[Date "2022.04.19"]
[WhiteClock "0:00:40"]
[BlackClock "0:00:26"]

1. e4 {[%clk 0:02:55]}  c5 {[%clk 0:02:59]} 2. c3 {[%clk 0:02:49]}  Nf6 {[%clk 0:02:57]} 3. e5 {[%clk 0:02:48]}  Nd5 {[%clk 0:02:57]} 4. Nf3 {[%clk 0:02:47]}  Nc6 {[%clk 0:02:57]} 5. Bc4 {[%clk 0:02:47]}  Nb6 {[%clk 0:02:56]} 6. Bb3 {[%clk 0:02:47]}  d5 {[%clk 0:02:55]} 7. exd6 {[%clk 0:02:46]}  e6 {[%clk 0:02:55]} 8. O-O {[%clk 0:02:45]}  Bxd6 {[%clk 0:02:56]} 9. d4 {[%clk 0:02:45]}  O-O {[%clk 0:02:55]} 10. Nbd2 {[%clk 0:02:38]}  cxd4 {[%clk 0:02:52]} 11. cxd4 {[%clk 0:02:36]}  Bc7 {[%clk 0:02:48]} 12. Ne4 {[%clk 0:02:35]}  Nd5 {[%clk 0:02:37]} 13. Bg5 {[%clk 0:02:34]}  f6 {[%clk 0:02:13]} 14. Bh4 {[%clk 0:02:33]}  Qe8 {[%clk 0:02:08]} 15. Bg3 {[%clk 0:02:31]}  Bxg3 {[%clk 0:02:03]} 16. hxg3 {[%clk 0:02:31]}  Qg6 {[%clk 0:02:02]} 17. Re1 {[%clk 0:02:18]}  b6 {[%clk 0:01:54]} 18. Nd6 {[%clk 0:02:08]}  Bd7 {[%clk 0:01:51]} 19. Rc1 {[%clk 0:01:59]}  Nce7 {[%clk 0:01:46]} 20. Nc4 {[%clk 0:01:39]}  Rac8 {[%clk 0:01:35]} 21. Ne3 {[%clk 0:01:39]}  Nxe3 {[%clk 0:01:26]} 22. Rxe3 {[%clk 0:01:37]}  Qf5 {[%clk 0:01:24]} 23. Rcc3 {[%clk 0:01:27]}  Nd5 {[%clk 0:01:18]} 24. Bxd5 {[%clk 0:01:25]}  exd5 {[%clk 0:01:19]} 25. Re7 {[%clk 0:01:21]}  Rxc3 {[%clk 0:01:13]} 26. bxc3 {[%clk 0:01:20]}  Rc8 {[%clk 0:01:13]} 27. Nh4 {[%clk 0:01:16]}  Qg4 {[%clk 0:01:09]} 28. Qd2 {[%clk 0:01:15]}  Bb5 {[%clk 0:01:04]} 29. Rxa7 {[%clk 0:01:13]}  Qe4 {[%clk 0:00:59]} 30. Nf3 {[%clk 0:01:03]}  Qb1+ {[%clk 0:00:57]} 31. Kh2 {[%clk 0:01:03]}  Qa1 {[%clk 0:00:55]} 32. Ra3 {[%clk 0:00:53]}  Bc4 {[%clk 0:00:51]} 33. Qe3 {[%clk 0:00:43]}  Qb2 {[%clk 0:00:50]} 34. Ra7 {[%clk 0:00:42]}  Rf8 {[%clk 0:00:40]} 35. Qe7 {[%clk 0:00:41]}  Qxf2 {[%clk 0:00:26]} 36. Qxg7# {[%clk 0:00:40]} 1-0


[Site "https://www.chess.com"]

[Event "Titled Tuesday Blitz April 19 Early 2022"]
[White "Chen, Qi b"]
[Black "Tasev, Dejan"]
[WhiteFideId "8614733"]
[BlackFideId "936618"]
[WhiteElo "2432"]
[BlackElo "2253"]
[Result "0-1"]
[Round "08"]
[TimeControl "180+1"]
[Date "2022.04.19"]
[WhiteClock "0:00:04"]
[BlackClock "0:00:22"]

1. e4 {[%clk 0:03:00]}  e5 {[%clk 0:02:59]} 2. Nf3 {[%clk 0:03:00]}  Nc6 {[%clk 0:02:58]} 3. Bc4 {[%clk 0:02:58]}  Nf6 {[%clk 0:02:57]} 4. Ng5 {[%clk 0:02:57]}  Bc5 {[%clk 0:02:57]} 5. Bxf7+ {[%clk 0:02:52]}  Ke7 {[%clk 0:02:43]} 6. Bb3 {[%clk 0:02:51]}  d6 {[%clk 0:02:35]} 7. h3 {[%clk 0:02:43]}  Qe8 {[%clk 0:02:29]} 8. d3 {[%clk 0:02:22]}  h6 {[%clk 0:02:24]} 9. Nf3 {[%clk 0:02:19]}  Qh5 {[%clk 0:02:17]} 10. Nbd2 {[%clk 0:01:54]}  g5 {[%clk 0:02:08]} 11. Nf1 {[%clk 0:01:27]}  Bd7 {[%clk 0:02:02]} 12. Ng3 {[%clk 0:01:20]}  Qg6 {[%clk 0:02:01]} 13. c3 {[%clk 0:01:19]}  Bb6 {[%clk 0:01:53]} 14. Qe2 {[%clk 0:01:14]}  Rae8 {[%clk 0:01:47]} 15. Be3 {[%clk 0:01:10]}  Kd8 {[%clk 0:01:44]} 16. O-O-O {[%clk 0:01:09]}  Kc8 {[%clk 0:01:41]} 17. Bc2 {[%clk 0:01:07]}  Qg8 {[%clk 0:01:31]} 18. Kb1 {[%clk 0:01:06]}  Be6 {[%clk 0:01:27]} 19. b3 {[%clk 0:01:00]}  d5 {[%clk 0:01:24]} 20. Bxb6 {[%clk 0:00:47]}  axb6 {[%clk 0:01:21]} 21. Rhe1 {[%clk 0:00:48]}  g4 {[%clk 0:01:11]} 22. hxg4 {[%clk 0:00:45]}  Bxg4 {[%clk 0:01:11]} 23. Qe3 {[%clk 0:00:38]}  d4 {[%clk 0:01:00]} 24. cxd4 {[%clk 0:00:33]}  exd4 {[%clk 0:01:00]} 25. Qf4 {[%clk 0:00:29]}  Nd7 {[%clk 0:00:54]} 26. Rc1 {[%clk 0:00:23]}  Bxf3 {[%clk 0:00:51]} 27. Qxf3 {[%clk 0:00:23]}  Rh7 {[%clk 0:00:41]} 28. Nf5 {[%clk 0:00:22]}  Qf8 {[%clk 0:00:39]} 29. Kb2 {[%clk 0:00:18]}  Nc5 {[%clk 0:00:35]} 30. Bb1 {[%clk 0:00:16]}  Rf7 {[%clk 0:00:32]} 31. Qh3 {[%clk 0:00:16]}  Kb8 {[%clk 0:00:31]} 32. f3 {[%clk 0:00:16]}  Ne5 {[%clk 0:00:31]} 33. f4 {[%clk 0:00:15]}  Nc6 {[%clk 0:00:28]} 34. g3 {[%clk 0:00:14]}  Na7 {[%clk 0:00:24]} 35. Red1 {[%clk 0:00:09]}  Nb5 {[%clk 0:00:24]} 36. a4 {[%clk 0:00:09]}  Nxa4+ {[%clk 0:00:24]} 37. Kc2 {[%clk 0:00:07]}  Qb4 {[%clk 0:00:22]} 38. Ba2 {[%clk 0:00:04]}  Qc3+ {[%clk 0:00:21]} 39. Kb1 {[%clk 0:00:04]}  Qb2# {[%clk 0:00:22]} 0-1


[Site "https://www.chess.com"]

[Event "Titled Tuesday Blitz April 19 Early 2022"]
[White "Cunha, Lucas Aguiar"]
[Black "Van den Dikkenberg, Erik"]
[WhiteFideId "2125404"]
[BlackFideId "1005880"]
[WhiteElo "2361"]
[BlackElo "2118"]
[Result "0-1"]
[Round "08"]
[TimeControl "180+1"]
[Date "2022.04.19"]
[WhiteClock "0:01:13"]
[BlackClock "0:00:34"]

1. e4 {[%clk 0:03:00]}  c5 {[%clk 0:02:59]} 2. Nf3 {[%clk 0:02:59]}  d6 {[%clk 0:03:00]} 3. d4 {[%clk 0:03:00]}  cxd4 {[%clk 0:03:01]} 4. Qxd4 {[%clk 0:03:01]}  a6 {[%clk 0:03:00]} 5. Be2 {[%clk 0:03:00]}  Nf6 {[%clk 0:02:59]} 6. O-O {[%clk 0:03:00]}  Nc6 {[%clk 0:03:00]} 7. Qe3 {[%clk 0:02:59]}  e5 {[%clk 0:02:58]} 8. Rd1 {[%clk 0:02:59]}  Qc7 {[%clk 0:02:58]} 9. Nc3 {[%clk 0:02:58]}  Be7 {[%clk 0:02:58]} 10. Nd5 {[%clk 0:02:58]}  Nxd5 {[%clk 0:02:57]} 11. exd5 {[%clk 0:02:59]}  Nb8 {[%clk 0:02:57]} 12. c4 {[%clk 0:02:58]}  Nd7 {[%clk 0:02:54]} 13. a4 {[%clk 0:02:49]}  a5 {[%clk 0:02:49]} 14. b3 {[%clk 0:02:49]}  O-O {[%clk 0:02:48]} 15. Ba3 {[%clk 0:02:49]}  b6 {[%clk 0:02:46]} 16. Rac1 {[%clk 0:02:47]}  Nc5 {[%clk 0:02:46]} 17. h3 {[%clk 0:02:37]}  f5 {[%clk 0:02:45]} 18. Bf1 {[%clk 0:02:37]}  h6 {[%clk 0:02:33]} 19. Re1 {[%clk 0:02:36]}  e4 {[%clk 0:02:32]} 20. Nd4 {[%clk 0:02:36]}  Bg5 {[%clk 0:02:29]} 21. Qc3 {[%clk 0:02:34]}  Bxc1 {[%clk 0:02:27]} 22. Nb5 {[%clk 0:02:32]}  Qd8 {[%clk 0:02:17]} 23. Bxc1 {[%clk 0:02:32]}  Ba6 {[%clk 0:02:05]} 24. Nd4 {[%clk 0:02:31]}  Qf6 {[%clk 0:02:00]} 25. Rd1 {[%clk 0:02:23]}  Rae8 {[%clk 0:01:58]} 26. Qc2 {[%clk 0:02:20]}  Bc8 {[%clk 0:01:37]} 27. f4 {[%clk 0:02:15]}  Nd3 {[%clk 0:01:28]} 28. Be3 {[%clk 0:02:09]}  Nc5 {[%clk 0:01:20]} 29. Nb5 {[%clk 0:02:06]}  Bd7 {[%clk 0:01:16]} 30. Bd4 {[%clk 0:02:03]}  Qe7 {[%clk 0:01:14]} 31. Nc3 {[%clk 0:01:58]}  Qh4 {[%clk 0:01:02]} 32. Be3 {[%clk 0:01:54]}  Qg3 {[%clk 0:01:01]} 33. Bc1 {[%clk 0:01:44]}  e3 {[%clk 0:00:55]} 34. Rd4 {[%clk 0:01:35]}  Nxb3 {[%clk 0:00:40]} 35. Qxb3 {[%clk 0:01:23]}  Qf2+ {[%clk 0:00:39]} 36. Kh2 {[%clk 0:01:23]}  Qxf1 {[%clk 0:00:39]} 37. Qd1 {[%clk 0:01:16]}  e2 {[%clk 0:00:37]} 38. Nxe2 {[%clk 0:01:12]}  Qxd1 {[%clk 0:00:34]} 39. Rxd1 {[%clk 0:01:13]}  Rxe2 {[%clk 0:00:34]} 0-1


[Site "https://www.chess.com"]